fUST/lending_fUST_20241003
["ID","MTS","AMOUNT","RATE_DAILY","PERIOD"]
[339724349,1727897446741,-1139.75106,0.00013698,2]
[339724350,1727897446751,-576.861344,0.00013698,2]
[339724351,1727897446762,-576.861344,0.00013698,2]
[339724352,1727897446771,-500.0,0.00013698,2]
[339724353,1727897446781,-603.35632666,0.00013698,2]
[339724354,1727897446790,-500.0,0.00013698,2]
[339724355,1727897446924,-1107.934427,0.00013698,2]
[339724356,1727897446935,-500.0,0.00013698,2]
[339724357,1727897446944,-500.0,0.00013698,2]
[339724358,1727897446953,-1107.934427,0.00013698,2]
[339724359,1727897446963,-173.296195,0.00013698,2]
[339724360,1727897446972,-500.0,0.00013698,2]
[339724361,1727897446982,-173.296195,0.00013698,2]
[339724362,1727897446991,-500.0,0.00013698,2]
[339724363,1727897447001,-603.88004735,0.00013698,2]
[339724364,1727897447262,-455.89995265,0.00013698,2]
[339724365,1727897447273,-500.0,0.00013698,2]
[339724366,1727897447285,-500.0,0.00013698,2]
[339724367,1727897447295,-432.18487793,0.00013698,2]
[339724368,1727897447307,-1107.934427,0.00013698,2]
[339724369,1727897447318,-1107.934427,0.00013698,2]
[339724370,1727897447327,-173.296195,0.00013698,2]
[339724371,1727897447338,-173.296195,0.00013698,2]
[339724372,1727897447349,-779.53,0.00013698,2]
[339724373,1727897447359,-500.0,0.00013698,2]
[339724374,1727897447370,-500.0,0.00013698,2]
[339724375,1727897447381,-2368.079304,0.00013698,2]
[339724376,1727897447391,-2368.079304,0.00013698,2]
[339724377,1727897447404,-2368.079304,0.00013698,2]
[339724378,1727897447414,-500.0,0.00013698,2]
[339724379,1727897447423,-500.0,0.00013698,2]
[339724380,1727897447432,-500.0,0.00013698,2]
[339724381,1727897447441,-2368.079304,0.00013698,2]
[339724382,1727897447451,-2368.079304,0.00013698,2]
[339724383,1727897447462,-500.0,0.00013698,2]
[339724384,1727897447473,-2368.079304,0.00013698,2]
[339724385,1727897447483,-588.21,0.00013698,2]
[339724386,1727897447492,-151.0,0.00013698,2]
[339724387,1727897447502,-151.0,0.00013698,2]
[339724388,1727897447513,-500.0,0.00013698,2]
[339724389,1727897447524,-151.0,0.00013698,2]
[339724390,1727897447537,-500.0,0.00013698,2]
[339724391,1727897447547,-500.0,0.00013698,2]
[339724392,1727897447559,-500.0,0.00013698,2]
[339724393,1727897447569,-500.0,0.00013698,2]
[339724394,1727897447579,-555.33,0.00013698,2]
[339724395,1727897447589,-500.0,0.00013698,2]
[339724396,1727897447599,-542.55,0.00013698,2]
[339724397,1727897447608,-500.0,0.00013698,2]
[339724398,1727897447621,-552.47,0.00013698,2]
[339724399,1727897447631,-500.0,0.00013698,2]
[339724400,1727897447640,-500.0,0.00013698,2]
[339724401,1727897447651,-834.86,0.00013698,2]
[339724402,1727897447663,-2038.33,0.00013698,2]
[339724403,1727897447674,-767.39,0.00013698,2]
[339724404,1727897447683,-647.338085,0.00013698,2]
[339724405,1727897447693,-647.338085,0.00013698,2]
[339724406,1727897447704,-500.41299466,0.00013698,2]
[339724407,1727897447715,-500.0,0.00013698,2]
[339724408,1727897447726,-647.338085,0.00013698,2]
[339724409,1727897447736,-647.338085,0.00013698,2]
[339724410,1727897447745,-228.44425297,0.00013698,2]
[339724411,1727897448056,890.52,0.00010959,2]
[339724412,1727897448613,-271.55574703,0.00013698,2]
[339724413,1727897448623,-500.0,0.00013698,2]
[339724414,1727897448633,-505.83,0.00013698,2]
[339724415,1727897448644,-977.16,0.00013698,2]
[339724416,1727897448658,-1799.12,0.00013698,2]
[339724417,1727897448668,-500.0,0.00013698,2]
[339724418,1727897448679,-500.0,0.00013698,2]
[339724419,1727897448690,-151.0,0.00013698,2]
[339724420,1727897448701,-151.0,0.00013698,2]
[339724421,1727897448712,-151.0,0.00013698,2]
[339724422,1727897448722,-500.0,0.00013698,2]
[339724423,1727897448732,-402.82477937,0.00013698,2]
[339724424,1727897449184,-150.112235,0.000136,2]
[339724425,1727897449194,-500.0,0.00013673,2]
[339724426,1727897449204,-97.17522063,0.00013698,2]
[339724427,1727897449214,-500.0,0.00013698,2]
[339724428,1727897449224,-500.0,0.00013698,2]
[339724429,1727897449414,-151.0,0.00013698,2]
[339724430,1727897449435,-455.06429667,0.00013698,2]
[339724431,1727897449547,-137.06570333,0.00013698,2]
[339724432,1727897449557,-151.0,0.00013698,2]
[339724433,1727897449566,-151.0,0.00013698,2]
[339724434,1727897449576,-500.0,0.00013698,2]
[339724435,1727897449585,-500.0,0.00013698,2]
[339724436,1727897449595,-316.37875138,0.00013698,2]
[339724438,1727897537527,500.0,0.00011506,2]
[339724439,1727897545227,574.3,0.00010959,2]
[339724445,1727897857991,199.19602685,0.00021,60]
[339724463,1727898443300,-2314.7999999,0.00010553,2]
[339724464,1727898443324,-157.10852846,0.00010859,2]
[339724465,1727898443348,-604.49,0.00010959,2]
[339724466,1727898443370,-503.74,0.00010959,2]
[339724467,1727898443392,-157.10852844,0.00011081,2]
[339724468,1727898443414,-157.10852844,0.00011302,2]
[339724469,1727898443436,-5352.0256237,0.00011364,2]
[339724470,1727898443459,-300.0,0.00011401,2]
[339724471,1727898443481,-628.87139661,0.00011402,2]
[339724472,1727898443503,-6706.0221944,0.00011403,2]
[339724473,1727898451145,-419.78,0.00010959,2]
[339724474,1727898451166,-7.24532439,0.00011403,2]
[339724475,1727898546197,-300.0,0.00010958,2]
[339724476,1727898546221,-300.0,0.00010958,2]
[339724477,1727898546245,-349.82,0.00010959,2]
[339724478,1727898546270,-291.51,0.00010959,2]
[339724479,1727898546293,-242.93,0.00010959,2]
[339724480,1727898546317,-202.44,0.00010959,2]
[339724481,1727898546342,-62.27325316,0.00010959,2]
[339724482,1727898547127,-106.42674684,0.00010959,2]
[339724483,1727898547150,-843.53,0.00010959,2]
[339724484,1727898547172,-18186.73248121,0.00011403,2]
[339724485,1727898547194,-509.5689537,0.00011524,2]
[339724486,1727898547216,-420.0,0.00012042,2]
[339724487,1727898547238,-420.0,0.00012054,2]
[339724488,1727898547261,-250.0,0.00012158,2]
[339724489,1727898547283,-250.0,0.00012192,2]
[339724490,1727898547308,-250.0,0.00012225,2]
[339724491,1727898547334,-250.0,0.00012258,2]
[339724492,1727898547357,-250.0,0.00012292,2]
[339724493,1727898547379,-250.0,0.00012325,2]
[339724494,1727898547402,-250.0,0.00012358,2]
[339724495,1727898547424,-250.0,0.00012392,2]
[339724496,1727898547446,-250.0,0.00012425,2]
[339724497,1727898547467,-250.0,0.00012458,2]
[339724498,1727898547670,-250.0,0.00012492,2]
[339724499,1727898547694,-250.0,0.00012525,2]
[339724500,1727898547715,-250.0,0.00012558,2]
[339724503,1727898554712,178.465445,0.00012187,2]
[339724504,1727898554937,178.465445,0.00012208,2]
[339724505,1727898555361,178.465445,0.00012228,2]
[339724506,1727898556452,178.465445,0.00012248,2]
[339724507,1727898568122,-250.0,0.00012592,2]
[339724508,1727898568145,-250.0,0.00012625,2]
[339724509,1727898568168,-250.0,0.00012658,2]
[339724510,1727898568190,-250.0,0.00012692,2]
[339724511,1727898568212,-250.0,0.00012725,2]
[339724512,1727898568235,-250.0,0.00012759,2]
[339724513,1727898568256,-250.0,0.00012792,2]
[339724514,1727898611043,171.24843,0.00012688,2]
[339724515,1727898611133,171.24843,0.00012798,2]
[339724571,1727898632734,-500.0,0.00012876,2]
[339724573,1727898632743,-171.24843,0.00012909,2]
[339724575,1727898632753,-171.24843,0.00013019,2]
[339724577,1727898632763,-171.24843,0.00013129,2]
[339724579,1727898632773,-500.0,0.00013205,2]
[339724581,1727898632783,-171.24843,0.00013239,2]
[339724583,1727898632792,-171.24843,0.00013349,2]
[339724585,1727898632802,-67.26236871,0.00013442,2]
[339724587,1727898632813,-7126.83325384,0.00013442,2]
[339724589,1727898632822,-446.10143005,0.00013578,2]
[339724591,1727898632832,-208.95703111,0.00013598,2]
[339724593,1727898632842,-300.0,0.00013667,2]
[339724596,1727898632853,-300.0,0.00013667,2]
[339724597,1727898632862,-419.24759774,0.00013668,2]
[339724600,1727898632872,-86598.949534,0.00013668,2]
[339724602,1727898632882,-5019.3248861,0.00013668,2]
[339724604,1727898632894,-500.0,0.00013673,2]
[339724606,1727898632904,-500.0,0.00013673,2]
[339724607,1727898632913,-500.0,0.00013673,2]
[339724610,1727898632922,-500.0,0.00013673,2]
[339724611,1727898632932,-500.0,0.00013673,2]
[339724614,1727898632942,-500.0,0.00013673,2]
[339724616,1727898632952,-500.0,0.00013673,2]
[339724618,1727898632961,-500.51863415,0.00013673,2]
[339724620,1727898632971,-500.0,0.00013673,2]
[339724622,1727898632980,-500.0,0.00013673,2]
[339724624,1727898632989,-500.0,0.00013673,2]
[339724626,1727898632998,-549.80656059,0.00013673,2]
[339724627,1727898633008,-500.0,0.00013673,2]
[339724629,1727898633019,-500.0,0.00013673,2]
[339724632,1727898633030,-500.0,0.00013673,2]
[339724634,1727898633040,-500.0,0.00013673,2]
[339724636,1727898633050,-500.0,0.00013673,2]
[339724638,1727898633061,-173.0,0.00013673,2]
[339724640,1727898633071,-31548.49321113,0.00013678,2]
[339724642,1727898633088,-350.23752855,0.00013678,2]
[339724658,1727898633621,-47.44725826,0.00013678,2]
[339724683,1727898638972,-1697.23175499,0.00013678,2]
[339724684,1727898639001,-936.21940901,0.00013678,2]
[339724700,1727898640691,-6254.4,0.00013678,2]
[339724701,1727898640758,-1960.1761839,0.00013678,2]
[339724714,1727898643829,-500.0,0.00013673,2]
[339724715,1727898643838,-4578.4031,0.00013678,2]
[339724716,1727898644052,-5930.5515525,0.00013678,2]
[339724768,1727898646784,-163194.21383666,0.00013678,2]
[339724769,1727898646796,-27606.2868736,0.00013678,2]
[339724770,1727898646806,-12567.9418057,0.00013686,2]
[339724771,1727898646817,-5019.3248861,0.00013688,2]
[339724772,1727898646827,-12548.3122153,0.00013688,2]
[339724774,1727898646839,-228.351532,0.00013698,2]
[339724776,1727898646849,-175.028629,0.00013698,2]
[339724777,1727898646858,-175.028629,0.00013698,2]
[339724778,1727898646868,-175.028629,0.00013698,2]
[339724779,1727898646878,-175.028629,0.00013698,2]
[339724780,1727898646888,-175.028629,0.00013698,2]
[339724781,1727898646902,-175.028629,0.00013698,2]
[339724782,1727898646919,-151.0,0.00013698,2]
[339724783,1727898646929,-151.0,0.00013698,2]
[339724784,1727898646939,-151.0,0.00013698,2]
[339724785,1727898646949,-151.0,0.00013698,2]
[339724786,1727898647124,-151.0,0.00013698,2]
[339724787,1727898647137,-151.0,0.00013698,2]
[339724788,1727898647151,-151.0,0.00013698,2]
[339724789,1727898647161,-170.716451,0.00013698,2]
[339724790,1727898647172,-151.0,0.00013698,2]
[339724791,1727898647182,-151.0,0.00013698,2]
[339724792,1727898647193,-151.0,0.00013698,2]
[339724793,1727898647203,-151.0,0.00013698,2]
[339724794,1727898647213,-9849.26872951,0.00013698,2]
[339724795,1727898647223,-500.0,0.00013698,2]
[339724796,1727898647233,-258.167355,0.00013698,2]
[339724797,1727898647243,-258.167355,0.00013698,2]
[339724798,1727898647253,-151.0,0.00013698,2]
[339724799,1727898647263,-258.167355,0.00013698,2]
[339724800,1727898647273,-151.0,0.00013698,2]
[339724801,1727898647283,-258.167355,0.00013698,2]
[339724802,1727898647293,-151.0,0.00013698,2]
[339724803,1727898647303,-182.349486,0.00013698,2]
[339724804,1727898647313,-258.167355,0.00013698,2]
[339724805,1727898647322,-258.167355,0.00013698,2]
[339724806,1727898647332,-258.167355,0.00013698,2]
[339724807,1727898647342,-258.167355,0.00013698,2]
[339724808,1727898647353,-239.50611507,0.00013698,2]
[339724809,1727898647362,-180.6761927,0.00013698,2]
[339724810,1727898647372,-157.32708778,0.00013698,2]
[339724811,1727898647382,-500.0,0.00013698,2]
[339724812,1727898647392,-358.31905056,0.00013698,2]
[339724813,1727898647412,-400.0,0.00013698,2]
[339724814,1727898647421,-500.0,0.00013698,2]
[339724815,1727898647432,-500.0,0.00013698,2]
[339724816,1727898647442,-353.412299,0.00013698,2]
[339724817,1727898647452,-500.0,0.00013698,2]
[339724818,1727898647462,-151.0,0.00013698,2]
[339724819,1727898647472,-516.53873763,0.00013698,2]
[339724820,1727898647482,-500.0,0.00013698,2]
[339724821,1727898647492,-500.0,0.00013698,2]
[339724822,1727898647502,-500.0,0.00013698,2]
[339724823,1727898647512,-500.0,0.00013698,2]
[339724824,1727898647523,-151.0,0.00013698,2]
[339724825,1727898647533,-500.0,0.00013698,2]
[339724826,1727898647543,-500.0,0.00013698,2]
[339724827,1727898647553,-500.0,0.00013698,2]
[339724828,1727898647562,-500.0,0.00013698,2]
[339724829,1727898647572,-500.0,0.00013698,2]
[339724830,1727898647582,-671.42,0.00013698,2]
[339724831,1727898647591,-522.34,0.00013698,2]
[339724832,1727898647601,-500.0,0.00013698,2]
[339724833,1727898647610,-500.0,0.00013698,2]
[339724834,1727898647620,-500.0,0.00013698,2]
[339724835,1727898647630,-500.0,0.00013698,2]
[339724836,1727898647639,-500.0,0.00013698,2]
[339724837,1727898647652,-500.0,0.00013698,2]
[339724838,1727898647662,-500.0,0.00013698,2]
[339724839,1727898647672,-500.0,0.00013698,2]
[339724840,1727898647683,-566.80775733,0.00013698,2]
[339724841,1727898647693,-500.0,0.00013698,2]
[339724842,1727898647703,-151.0,0.00013698,2]
[339724843,1727898647712,-500.0,0.00013698,2]
[339724844,1727898647722,-624.43,0.00013698,2]
[339724845,1727898647732,-500.0,0.00013698,2]
[339724846,1727898647741,-1228.1,0.00013698,2]
[339724847,1727898647754,-368.28608437,0.00013698,2]
[339724848,1727898647763,-500.0,0.00013698,2]
[339724849,1727898647773,-500.0,0.00013698,2]
[339724850,1727898647783,-500.0,0.00013698,2]
[339724851,1727898647793,-500.0,0.00013698,2]
[339724852,1727898647802,-500.0,0.00013698,2]
[339724853,1727898647812,-500.0,0.00013698,2]
[339724854,1727898647821,-500.0,0.00013698,2]
[339724855,1727898647831,-500.0,0.00013698,2]
[339724856,1727898647842,-500.0,0.00013698,2]
[339724857,1727898647852,-500.0,0.00013698,2]
[339724858,1727898647861,-500.0,0.00013698,2]
[339724859,1727898647871,-500.0,0.00013698,2]
[339724860,1727898647880,-500.0,0.00013698,2]
[339724861,1727898647890,-845.98,0.00013698,2]
[339724862,1727898647903,-500.0,0.00013698,2]
[339724863,1727898647913,-500.0,0.00013698,2]
[339724864,1727898647922,-500.0,0.00013698,5]
[339724865,1727898647932,-500.0,0.00013698,2]
[339724866,1727898647942,-500.0,0.00013698,2]
[339724867,1727898647951,-500.0,0.00013698,2]
[339724868,1727898647961,-500.0,0.00013698,2]
[339724869,1727898647971,-500.0,0.00013698,2]
[339724870,1727898647980,-500.0,0.00013698,2]
[339724871,1727898647991,-341.838197,0.00013698,2]
[339724872,1727898648000,-1069.62,0.00013698,2]
[339724873,1727898648010,-384.84480084,0.00013698,2]
[339724874,1727898648024,-408.034953,0.00013698,2]
[339724875,1727898648034,-341.838197,0.00013698,2]
[339724876,1727898648043,-500.0,0.00013698,2]
[339724877,1727898648053,-408.034953,0.00013698,2]
[339724878,1727898648066,-500.0,0.00013698,2]
[339724879,1727898648076,-500.0,0.00013698,2]
[339724880,1727898648086,-500.0,0.00013698,2]
[339724881,1727898648099,-291.5252112,0.00013698,2]
[339724882,1727898648109,-500.0,0.00013698,2]
[339724883,1727898648118,-500.0,0.00013698,2]
[339724884,1727898648128,-500.0,0.00013698,2]
[339724885,1727898648139,-500.0,0.00013698,2]
[339724886,1727898648152,-426.59561918,0.00013698,2]
[339724887,1727898661826,465.1,0.00010959,2]
[339724888,1727898672441,387.58,0.00010959,2]
[339724889,1727898682929,322.99,0.00010959,2]
[339724890,1727898691583,500.0,0.00011506,2]
[339724891,1727898693478,269.15,0.00010959,2]
[339724892,1727898704032,224.3,0.00010959,2]
[339724893,1727898715136,186.91,0.00010959,2]
[339724894,1727898725699,155.76,0.00010959,2]
[339724895,1727898736392,778.83,0.00010959,2]
[339724899,1727899551143,-842.7177509,0.00011566,2]
[339724900,1727899551169,-250.0,0.00011579,2]
[339724901,1727899551192,-163.2187874,0.00011624,2]
[339724902,1727899551219,-173.859694,0.00011912,2]
[339724903,1727899551243,-173.859694,0.00012119,2]
[339724904,1727899551264,-300.0,0.00012174,2]
[339724905,1727899551290,-67.02835917,0.00012174,2]
[339724906,1727899646102,-500.0,0.000118,2]
[339724907,1727899646123,-208.34269672,0.000118,2]
[339724908,1727899746094,-291.65730328,0.000118,2]
[339724909,1727899746115,-500.0,0.000118,2]
[339724910,1727899746136,-487.15731388,0.000118,2]
[339724911,1727899746157,-300.0,0.00012134,2]
[339724912,1727899746178,-300.0,0.00012134,2]
[339724913,1727899746200,-24900.0,0.00012135,2]
[339724914,1727899746223,-173.859694,0.00012326,2]
[339724915,1727899746245,-161.644052,0.00012385,2]
[339724916,1727899746268,-161.644052,0.00012447,2]
[339724917,1727899746287,-190.6999502,0.00012517,2]
[339724918,1727899746309,-173.859694,0.00012533,2]
[339724938,1727899831791,-500.0,0.00012876,2]
[339724939,1727899831801,-500.0,0.00013205,2]
[339724940,1727899831810,-7460.99046319,0.00013573,2]
[339724941,1727899831821,-300.0,0.00013597,2]
[339724942,1727899831831,-300.0,0.00013597,2]
[339724943,1727899831841,-446.10143005,0.00013598,2]
[339724945,1727899831851,-2000.0,0.000136,2]
[339724947,1727899831861,-1000.0,0.000136,2]
[339724949,1727899831871,-1000.0,0.00013633,2]
[339724952,1727899831885,-4572.40810676,0.00013646,2]
[339724956,1727899831910,-2621.68751579,0.00013646,2]
[339724959,1727899831929,-22239.82318866,0.00013668,2]
[339724962,1727899831948,-1283.98769293,0.00013668,2]
[339725041,1727899837761,-369.39857998,0.00013668,2]
[339725042,1727899837772,-6519.50657644,0.00013668,2]
[339725044,1727899837857,-1484.91508733,0.00013668,2]
[339725045,1727899837868,-473.21000055,0.00013668,2]
[339725046,1727899837880,-422.8343388,0.00013668,2]
[339725056,1727899839973,-1731.19781452,0.00013668,2]
[339725057,1727899840028,-501.55,0.00013668,2]
[339725058,1727899840041,-61131.5670763,0.00013668,2]
[339725059,1727899840181,-1174.61692453,0.00013668,2]
[339725070,1727899843283,-218.96492061,0.00013668,2]
[339725071,1727899843365,-35.6933317,0.00013668,2]
[339725092,1727899845875,-43505.42604063,0.00013668,2]
[339725094,1727899845884,-257.39989761,0.00013673,2]
[339725096,1727899845894,-500.0,0.00013673,2]
[339725097,1727899845905,-500.0,0.00013673,2]
[339725098,1727899845915,-500.69619032,0.00013673,2]
[339725099,1727899845924,-500.0,0.00013673,2]
[339725100,1727899845934,-500.0,0.00013673,2]
[339725101,1727899845944,-500.0,0.00013673,2]
[339725102,1727899845953,-500.0,0.00013673,2]
[339725103,1727899845963,-500.0,0.00013673,2]
[339725104,1727899845973,-56289.3171971,0.00013678,2]
[339725105,1727899845984,-28144.6585986,0.00013678,2]
[339725106,1727899845994,-6675.45444606,0.00013678,2]
[339725108,1727899913112,500.0,0.00011506,2]
[339725111,1727900739645,-250.0,0.00012359,2]
[339725112,1727900739671,-300.0,0.00012496,2]
[339725113,1727900739693,-300.0,0.00012496,2]
[339725114,1727900739717,-896.40821547,0.00012497,2]
[339725126,1727900947120,-300.0,0.00012527,2]
[339725127,1727900947141,-300.0,0.00012527,2]
[339725128,1727900947162,-24900.0,0.00012528,2]
[339725167,1727901032024,-500.0,0.00012876,2]
[339725168,1727901032033,-2218.9249556,0.0001292,2]
[339725169,1727901032043,-1946.38651927,0.00013197,2]
[339725170,1727901032058,-3559.87245276,0.00013197,2]
[339725184,1727901038005,-165.58869326,0.00013197,2]
[339725185,1727901038015,-153.0,0.000132,2]
[339725186,1727901038025,-153.0,0.000132,2]
[339725187,1727901038035,-151.17925458,0.00013319,2]
[339725235,1727901039964,-148.82074542,0.00013319,2]
[339725237,1727901039973,-300.0,0.00013319,2]
[339725239,1727901039983,-6565.50456374,0.0001332,2]
[339725241,1727901039992,-153.0,0.000134,2]
[339725243,1727901040002,-2218.9249556,0.0001342,2]
[339725245,1727901040011,-153.0,0.000135,2]
[339725247,1727901040020,-418.39857,0.000136,2]
[339725249,1727901040029,-209.1727986,0.000136,2]
[339725251,1727901040040,-1000.0,0.00013655,2]
[339725253,1727901040049,-500.92319243,0.00013673,2]
[339725255,1727901040058,-500.0,0.00013673,2]
[339725257,1727901040068,-500.0,0.00013673,2]
[339725260,1727901040078,-500.0,0.00013673,2]
[339725262,1727901040087,-332.9479142,0.00013673,2]
[339725264,1727901040096,-500.0,0.00013673,2]
[339725266,1727901040105,-500.0,0.00013673,2]
[339725268,1727901040118,-500.0,0.00013673,2]
[339725270,1727901040127,-500.0,0.00013673,2]
[339725272,1727901040136,-500.0,0.00013673,2]
[339725274,1727901040146,-500.0,0.00013673,2]
[339725275,1727901040155,-500.0,0.00013673,2]
[339725277,1727901040164,-500.0,0.00013673,2]
[339725279,1727901040173,-500.0,0.00013673,2]
[339725281,1727901040182,-500.0,0.00013673,2]
[339725282,1727901040191,-246.26571998,0.00013678,2]
[339725284,1727901040200,-54359.2087572,0.00013678,2]
[339725286,1727901040210,-29185.5237109,0.00013678,2]
[339725288,1727901040220,-61381.46988837,0.00013678,2]
[339725290,1727901040229,-8796.49900302,0.00013678,2]
[339725292,1727901040239,-163077.626272,0.00013678,2]
[339725294,1727901040248,-87556.5711326,0.00013678,2]
[339725295,1727901040257,-27179.6043786,0.00013688,2]
[339725297,1727901040267,-175113.142265,0.00013688,2]
[339725299,1727901040277,-199.58842923,0.00013697,2]
[339725301,1727901040286,-9849.26872951,0.00013697,2]
[339725303,1727901040296,-151.0,0.00013698,2]
[339725305,1727901040305,-207.433056,0.00013698,2]
[339725306,1727901040315,-278.941675,0.00013698,2]
[339725308,1727901040324,-151.0,0.00013698,2]
[339725310,1727901040333,-151.0,0.00013698,2]
[339725312,1727901040345,-167.307722,0.00013698,2]
[339725314,1727901040353,-167.307722,0.00013698,2]
[339725315,1727901040365,-167.307722,0.00013698,2]
[339725317,1727901040374,-167.307722,0.00013698,2]
[339725319,1727901040383,-151.0,0.00013698,2]
[339725321,1727901040392,-151.0,0.00013698,2]
[339725322,1727901040401,-151.0,0.00013698,2]
[339725324,1727901040410,-151.0,0.00013698,2]
[339725326,1727901040418,-151.0,0.00013698,2]
[339725328,1727901040428,-151.0,0.00013698,2]
[339725330,1727901040437,-151.0,0.00013698,2]
[339725331,1727901040447,-296.999174,0.00013698,2]
[339725333,1727901040456,-151.0,0.00013698,2]
[339725335,1727901040465,-151.0,0.00013698,2]
[339725337,1727901040474,-151.0,0.00013698,2]
[339725339,1727901040484,-194.098802,0.00013698,2]
[339725341,1727901040493,-194.098802,0.00013698,2]
[339725343,1727901040502,-194.098802,0.00013698,2]
[339725345,1727901040512,-194.098802,0.00013698,2]
[339725346,1727901040522,-194.098802,0.00013698,2]
[339725348,1727901040531,-194.098802,0.00013698,2]
[339725350,1727901040541,-260.88174704,0.00013698,2]
[339725352,1727901040551,-500.0,0.00013698,2]
[339725354,1727901040561,-300.0,0.00013698,2]
[339725356,1727901040570,-500.0,0.00013698,2]
[339725358,1727901040583,-500.0,0.00013698,2]
[339725359,1727901040593,-500.0,0.00013698,2]
[339725361,1727901040602,-151.0,0.00013698,2]
[339725363,1727901040612,-151.0,0.00013698,2]
[339725365,1727901040629,-151.0,0.00013698,2]
[339725367,1727901040639,-151.0,0.00013698,2]
[339725369,1727901040651,-151.0,0.00013698,2]
[339725371,1727901040661,-151.0,0.00013698,2]
[339725373,1727901040671,-288.343554,0.00013698,2]
[339725374,1727901040680,-500.0,0.00013698,2]
[339725376,1727901040691,-173.340938,0.00013698,2]
[339725378,1727901040700,-173.340938,0.00013698,2]
[339725380,1727901040709,-173.340938,0.00013698,2]
[339725382,1727901040719,-173.340938,0.00013698,2]
[339725384,1727901040728,-173.340938,0.00013698,2]
[339725385,1727901040737,-173.340938,0.00013698,2]
[339725386,1727901040747,-324.57408,0.00013698,2]
[339725387,1727901040757,-324.57408,0.00013698,2]
[339725389,1727901040769,-324.57408,0.00013698,2]
[339725390,1727901040779,-324.57408,0.00013698,2]
[339725391,1727901040788,-324.57408,0.00013698,2]
[339725392,1727901040797,-324.57408,0.00013698,2]
[339725393,1727901040809,-324.57408,0.00013698,2]
[339725394,1727901040819,-324.57408,0.00013698,2]
[339725395,1727901040829,-324.57408,0.00013698,2]
[339725396,1727901040839,-324.57408,0.00013698,2]
[339725397,1727901040849,-324.57408,0.00013698,2]
[339725398,1727901040859,-324.57408,0.00013698,2]
[339725399,1727901040874,-500.0,0.00013698,2]
[339725400,1727901040883,-500.0,0.00013698,2]
[339725401,1727901040893,-422.79525645,0.00013698,2]
[339725402,1727901040902,-256.896259,0.00013698,2]
[339725403,1727901041062,-568.86,0.00013698,2]
[339725404,1727901041078,-256.896259,0.00013698,2]
[339725405,1727901041087,-256.896259,0.00013698,2]
[339725406,1727901041097,-256.896259,0.00013698,2]
[339725407,1727901041107,-256.896259,0.00013698,2]
[339725408,1727901041121,-256.896259,0.00013698,2]
[339725409,1727901041130,-256.896259,0.00013698,2]
[339725410,1727901041139,-256.896259,0.00013698,2]
[339725411,1727901041150,-500.0,0.00013698,2]
[339725412,1727901041159,-500.0,0.00013698,2]
[339725413,1727901041169,-500.0,0.00013698,2]
[339725414,1727901041178,-570.91382915,0.00013698,2]
[339725415,1727901041188,-500.0,0.00013698,2]
[339725416,1727901041198,-666.2,0.00013698,2]
[339725417,1727901041207,-500.0,0.00013698,2]
[339725418,1727901041217,-500.0,0.00013698,2]
[339725419,1727901041227,-151.0,0.00013698,2]
[339725420,1727901041236,-151.0,0.00013698,2]